fUSD/lending_fUSD_20250620
["ID","MTS","AMOUNT","RATE_DAILY","PERIOD"]
[366656253,1750380647606,-490.0,0.00028666,4]
[366656254,1750380647616,-490.0,0.00028666,4]
[366656255,1750380647626,-490.0,0.00028666,4]
[366656256,1750380647636,-500.0,0.00028666,4]
[366656257,1750380647647,-490.0,0.00028666,4]
[366656258,1750380647657,-490.0,0.00028666,4]
[366656259,1750380647666,-490.0,0.00028666,4]
[366656260,1750380647676,-490.0,0.00028666,4]
[366656261,1750380647686,-247.70801134,0.00028666,4]
[366656262,1750380647697,-490.0,0.00028666,4]
[366656263,1750380647707,-1262.63,0.00028666,4]
[366656264,1750380647718,-490.0,0.00028666,4]
[366656265,1750380647727,-794.24,0.00028666,4]
[366656266,1750380647737,-490.0,0.00028666,4]
[366656267,1750380647748,-490.0,0.00028666,4]
[366656268,1750380647758,-888.18,0.00028666,4]
[366656269,1750380647768,-490.0,0.00028666,4]
[366656270,1750380647778,-490.0,0.00028666,4]
[366656271,1750380647789,-490.0,0.00028666,4]
[366656272,1750380647799,-460.0,0.00028666,4]
[366656273,1750380647809,-510.0,0.00028666,4]
[366656274,1750380647819,-490.0,0.00028666,4]
[366656275,1750380647828,-490.0,0.00028666,4]
[366656276,1750380647838,-844.49,0.00028666,4]
[366656277,1750380647848,-490.0,0.00028666,4]
[366656278,1750380647859,-490.0,0.00028666,4]
[366656279,1750380647869,-490.0,0.00028666,4]
[366656280,1750380647879,-490.0,0.00028666,4]
[366656281,1750380647889,-500.0,0.00028666,4]
[366656282,1750380647899,-490.0,0.00028666,4]
[366656283,1750380647910,-965.5,0.00028666,4]
[366656284,1750380647920,-490.0,0.00028666,4]
[366656285,1750380647930,-490.0,0.00028666,4]
[366656286,1750380647941,-897.71,0.00028666,4]
[366656287,1750380647951,-500.0,0.00028666,4]
[366656288,1750380647961,-166.64479256,0.00028666,4]
[366656289,1750380647971,-490.0,0.00028666,4]
[366656290,1750380647981,-490.0,0.00028666,4]
[366656291,1750380647993,-490.0,0.00028666,4]
[366656292,1750380648003,-1110.92,0.00028666,4]
[366656293,1750380648013,-490.0,0.00028666,4]
[366656294,1750380648023,-773.32,0.00028666,4]
[366656295,1750380648033,-456.6460273,0.00028666,4]
[366656296,1750380648044,-490.0,0.00028666,4]
[366656297,1750380648054,-796.9,0.00028666,4]
[366656298,1750380648065,-246.69191403,0.00028666,4]
[366656299,1750380648075,-490.0,0.00028666,4]
[366656300,1750380648085,-490.0,0.00028666,4]
[366656301,1750380648096,-734.5,0.00028666,4]
[366656302,1750380648105,-490.0,0.00028666,4]
[366656303,1750380648119,-510.6,0.00028666,4]
[366656304,1750380648130,-490.0,0.00028666,4]
[366656305,1750380648141,-490.0,0.00028666,4]
[366656306,1750380648150,-303.34576843,0.00028666,4]
[366656307,1750380648163,-490.0,0.00028666,4]
[366656308,1750380648173,-490.0,0.00028666,4]
[366656309,1750380648183,-490.0,0.00028666,4]
[366656310,1750380648197,-490.0,0.00028666,4]
[366656311,1750380648208,-2881.77,0.00028666,4]
[366656312,1750380648219,-490.0,0.00028666,4]
[366656313,1750380648230,-490.0,0.00028666,4]
[366656314,1750380648240,-464.41616298,0.00028666,4]
[366656315,1750380648250,-490.0,0.00028666,4]
[366656316,1750380648260,-624.2,0.00028666,4]
[366656317,1750380648270,-856.78,0.00028666,4]
[366656318,1750380648280,-1344.34,0.00028666,4]
[366656319,1750380648293,-490.0,0.00028666,4]
[366656320,1750380648303,-1057.0,0.00028666,4]
[366656321,1750380648314,-490.0,0.00028666,4]
[366656322,1750380648323,-1544.78,0.00028666,4]
[366656323,1750380648334,-490.0,0.00028666,4]
[366656324,1750380648344,-821.98,0.00028666,4]
[366656325,1750380648354,-2272.56,0.00028666,4]
[366656326,1750380648364,-621.65096053,0.00028666,4]
[366656327,1750380648374,-490.0,0.00028666,4]
[366656328,1750380648384,-1178.36,0.00028666,4]
[366656329,1750380648394,-490.0,0.00028666,4]
[366656330,1750380648404,-1425.5,0.00028666,4]
[366656331,1750380648414,-428.39136601,0.00028666,4]
[366656332,1750380648424,-694.76,0.00028666,4]
[366656333,1750380648434,-1312.11,0.00028666,4]
[366656334,1750380648447,-490.0,0.00028666,4]
[366656335,1750380648457,-490.0,0.00028666,4]
[366656336,1750380648466,-3245.02,0.00028666,4]
[366656337,1750380648477,-336.62747271,0.00028666,4]
[366656338,1750380648487,-490.0,0.00028666,4]
[366656339,1750380648498,-604.72980595,0.00028666,4]
[366656340,1750380648508,-490.0,0.00028666,4]
[366656341,1750380648518,-1385.54,0.00028666,4]
[366656342,1750380648529,-1890.14,0.00028666,4]
[366656343,1750380648540,-1000.0,0.00028666,2]
[366656344,1750380648550,-490.0,0.00028666,4]
[366656345,1750380648560,-1559.01,0.00028666,4]
[366656346,1750380648571,-490.0,0.00028666,4]
[366656347,1750380648581,-490.0,0.00028666,4]
[366656348,1750380648592,-395.37853982,0.00028666,4]
[366656349,1750380648602,-490.0,0.00028666,4]
[366656350,1750380648612,-1552.05,0.00028666,4]
[366656351,1750380648623,-406.59873213,0.00028666,4]
[366656352,1750380648633,-1157.01,0.00028666,4]
[366656353,1750380648645,-525.8,0.00028666,4]
[366656354,1750380648656,-433.18351699,0.00028666,4]
[366656355,1750380648666,-953.68,0.00028666,4]
[366656356,1750380648677,-1428.76,0.00028666,4]
[366656357,1750380648689,-490.0,0.00028666,4]
[366656358,1750380648699,-490.0,0.00028666,4]
[366656359,1750380648709,-462.25862982,0.00028666,4]
[366656360,1750380648719,-588.89,0.00028666,4]
[366656361,1750380648730,-490.0,0.00028666,4]
[366656362,1750380648740,-5220.75,0.00028666,4]
[366656363,1750380648751,-490.0,0.00028666,4]
[366656364,1750380648767,-490.0,0.00028666,4]
[366656365,1750380648777,-490.0,0.00028666,4]
[366656366,1750380648787,-462.30170013,0.00028666,4]
[366656367,1750380648797,-490.0,0.00028666,4]
[366656368,1750380648808,-490.0,0.00028666,4]
[366656369,1750380648819,-490.0,0.00028666,4]
[366656370,1750380648829,-490.0,0.00028666,4]
[366656371,1750380648839,-5622.71,0.00028666,4]
[366656372,1750380649117,-490.0,0.00028666,4]
[366656373,1750380649128,-1332.19,0.00028666,4]
[366656374,1750380649138,-490.0,0.00028666,4]
[366656375,1750380649148,-2550.41,0.00028666,4]
[366656376,1750380649159,-248.90649492,0.00028666,4]
[366656377,1750380650013,-170.89,0.00027578,2]
[366656378,1750380650023,-415.65789965,0.00027578,2]
[366656382,1750380958795,153.79,0.00013699,2]
[366656383,1750381089237,-2000.0,0.00024658,15]
[366656385,1750381128448,250.0,0.00015,2]
[366656386,1750381211855,206.0,0.0002454,2]
[366656405,1750381832416,-206.0,0.00025082,2]
[366656406,1750381832427,-400.0,0.00025227,2]
[366656407,1750381832439,-107.90783571,0.00026669,4]
[366656408,1750381832452,-98.09216429,0.00026669,4]
[366656409,1750381832462,-153.79,0.00027397,2]
[366656410,1750381832472,-164.78545339,0.00027397,2]
[366656411,1750381832482,-326.14758637,0.00027415,2]
[366656412,1750381832494,-331.14607609,0.00027415,2]
[366656413,1750381832504,-358.02,0.00027482,120]
[366656414,1750381832515,-452.77339691,0.000275,2]
[366656429,1750381832919,-1010.66891909,0.000275,2]
[366656434,1750381832985,-424.81935488,0.000275,2]
[366656437,1750381833003,-2019.11445745,0.000275,2]
[366656440,1750381833032,-1019.11991005,0.000275,2]
[366656442,1750381833044,-520.28391676,0.000275,2]
[366656455,1750381833199,-550.99707701,0.000275,2]
[366656514,1750381840499,-1000.0,0.00027333,2]
[366656515,1750381840511,-309764.2702427,0.000275,2]
[366656516,1750381840772,-200.0,0.00026411,2]
[366656517,1750381840782,-1204.84014262,0.000275,2]
[366656518,1750381840794,-356.4600005,0.000275,2]
[366656531,1750381843497,-342.66337,0.000275,2]
[366656532,1750381843555,-453.0,0.000275,2]
[366656533,1750381843682,-415.72797345,0.000275,2]
[366656534,1750381843780,-3936.85722461,0.000275,2]
[366656535,1750381843792,-371.37569924,0.000275,2]
[366656536,1750381843804,-3455.27680065,0.000275,2]
[366656560,1750381846775,-121119.30182835,0.000275,2]
[366656561,1750381846796,-15353.26179252,0.000275,2]
[366656562,1750381846825,-1281.47839881,0.000275,2]
[366656563,1750381846837,-1349.11100002,0.000275,2]
[366656564,1750381846917,-421.0144948,0.000275,2]
[366656565,1750381846932,-4486.71819952,0.000275,2]
[366656566,1750381846946,-4169.47875999,0.000275,2]
[366656567,1750381846962,-738.0688255,0.000275,2]
[366656568,1750381846974,-49967.1951714,0.000275,2]
[366656569,1750381846999,-33388.19944687,0.000275,2]
[366656572,1750381940857,153.79,0.00013699,2]
[366656574,1750382228533,168.0,0.00025,7]
[366656575,1750382228869,168.0,0.00024932,7]
[366656580,1750382380702,150.12,0.00025,2]
[366656582,1750382660844,979.99,0.00025,120]
[366656583,1750382684285,980.0,0.00025,120]
[366656584,1750382710118,772.98,0.00025,120]
[366656585,1750382732065,490.0,0.00025,120]
[366656586,1750382809765,545.35403743,0.00016,3]
[366656589,1750383003286,5644.68235684,0.00017406,2]
[366656590,1750383011958,206.0,0.00024256,2]
[366656605,1750383031927,-250.0,0.00025573,2]
[366656606,1750383031938,-206.0,0.00025686,4]
[366656607,1750383031948,-1099.58068028,0.00026999,2]
[366656608,1750383031961,-100.41931972,0.00026999,2]
[366656609,1750383031971,-206.0,0.00027116,6]
[366656610,1750383031981,-438.19577498,0.00027258,2]
[366656611,1750383031991,-239.58,0.00027333,120]
[366656612,1750383032002,-200.0,0.0002734,7]
[366656613,1750383032013,-1000.0,0.00027358,2]
[366656614,1750383032023,-151.0,0.00027384,2]
[366656615,1750383032034,-151.0,0.00027384,2]
[366656616,1750383032044,-151.0,0.00027384,2]
[366656617,1750383032054,-151.0,0.00027384,2]
[366656618,1750383032064,-151.0,0.00027384,2]
[366656619,1750383032074,-198.0,0.00027384,2]
[366656620,1750383032084,-668.65185757,0.00027384,2]
[366656621,1750383032094,-849.0998808,0.00027384,2]
[366656622,1750383032199,-1108.7561192,0.00027384,2]
[366656623,1750383032211,-207.4,0.00027384,2]
[366656624,1750383032221,-151.0,0.00027384,2]
[366656625,1750383032230,-151.0,0.00027384,2]
[366656626,1750383032240,-188.0,0.00027384,2]
[366656627,1750383032250,-170.89,0.000274,2]
[366656628,1750383032259,-13455.84,0.000274,2]
[366656629,1750383032270,-9999.99,0.000274,2]
[366656630,1750383032280,-2247.98,0.000274,2]
[366656631,1750383032290,-354.83,0.000274,2]
[366656632,1750383032301,-494.99,0.000274,2]
[366656634,1750383032311,-1164.87,0.000274,2]
[366656636,1750383032321,-354.91,0.000274,2]
[366656638,1750383032330,-5968.01509914,0.000274,2]
[366656642,1750383032361,-3842.67448139,0.000274,2]
[366656658,1750383037638,-601.06144028,0.000274,2]
[366656711,1750383040584,-2325.0000005,0.000274,2]
[366656712,1750383040599,-1705.5582732,0.000274,2]
[366656713,1750383040614,-574.51572812,0.000274,2]
[366656714,1750383040626,-289.15000193,0.000274,2]
[366656715,1750383040639,-39916.60307273,0.000274,2]
[366656716,1750383040648,-359.55,0.000274,2]
[366656717,1750383040658,-2030.296672,0.00027439,2]
[366656718,1750383040669,-1648.86063564,0.00027494,2]
[366656719,1750383040679,-342450.33627242,0.000275,2]
[366656720,1750383040735,-1515.13999999,0.000275,2]
[366656721,1750383040771,-1049.41419005,0.000275,2]
[366656722,1750383040783,-1685.77121904,0.000275,2]
[366656723,1750383040795,-1007.52312096,0.000275,2]
[366656724,1750383040807,-2616.0,0.000275,2]
[366656725,1750383040819,-8219.2528,0.000275,2]
[366656726,1750383040976,-2597.25,0.000275,2]
[366656727,1750383040989,-10424.0,0.000275,2]
[366656728,1750383041002,-11126.59124624,0.000275,2]
[366656729,1750383042076,202.0,0.00024256,2]
[366656734,1750383042740,-10637.0735972,0.000275,2]
[366656735,1750383042836,-608.31042892,0.000275,2]
[366656747,1750383045680,-276.48679559,0.00027353,2]
[366656749,1750383045742,-1000.0,0.0002678,2]
[366656750,1750383045752,-723.51320441,0.00027353,2]
[366656751,1750383045762,-354.91,0.000274,2]
[366656752,1750383045772,-714.12033005,0.0002743,2]
[366656753,1750383045979,-285.87966995,0.0002743,2]
[366656754,1750383045989,-109.88399428,0.00027485,2]
[366656757,1750383046379,162.13,0.00013699,2]
[366656758,1750383046410,-910.83993157,0.00027485,2]
[366656759,1750383046420,-82799.51110694,0.000275,2]
[366656760,1750383101967,280.0,0.00024256,2]
[366656761,1750383281981,280.0,0.00024256,2]
[366656762,1750383428107,160.0,0.00025,7]
[366656763,1750383428181,157.0,0.00025,7]
[366656764,1750383428562,157.0,0.00024932,7]
[366656768,1750383572955,1359.92360573,0.00025,30]
[366656769,1750383892930,915.618,0.00025,120]
[366656770,1750384014873,162.13,0.00013699,2]
[366657004,1750384238037,-395.00609873,0.00025,30]
[366657006,1750384238050,-245.58029554,0.00025,30]
[366657007,1750384238060,-160.0,0.00025,7]
[366657008,1750384238070,-250.0,0.00025,2]
[366657009,1750384238080,-206.0,0.00025545,2]
[366657010,1750384238091,-201.0,0.00025545,2]
[366657011,1750384238100,-202.0,0.00025545,2]
[366657012,1750384238110,-292.6392671,0.00025593,2]
[366657013,1750384238120,-370.2,0.00025677,2]
[366657014,1750384238130,-300.0,0.00025692,2]
[366657015,1750384238140,-1200.0,0.00025692,2]
[366657016,1750384238151,-150.0,0.00025693,4]
[366657017,1750384238162,-150.0,0.00025693,4]
[366657018,1750384238172,-150.0,0.00025693,4]
[366657019,1750384238182,-150.26849384,0.00025693,4]
[366657020,1750384238192,-150.0,0.00025693,4]
[366657021,1750384238202,-150.0,0.00025693,4]
[366657022,1750384238212,-150.0,0.00025693,4]
[366657023,1750384238222,-150.0,0.00025693,4]
[366657024,1750384238232,-150.0,0.00025693,4]
[366657025,1750384238242,-150.0,0.00025693,4]
[366657026,1750384238252,-150.0,0.00025693,4]
[366657027,1750384238262,-150.0,0.0002575,4]
[366657028,1750384238272,-150.0,0.00025763,4]
[366657029,1750384238283,-150.0,0.00025807,4]
[366657030,1750384238293,-150.0,0.00025823,4]
[366657031,1750384238304,-150.0,0.00025832,4]
[366657032,1750384238314,-150.0,0.00025836,4]
[366657033,1750384238324,-150.0,0.00025864,4]
[366657034,1750384238334,-161.0,0.0002589,7]
[366657035,1750384238346,-2831.06133248,0.000259,14]
[366657036,1750384238357,-150.0,0.00025902,4]
[366657037,1750384238368,-150.0,0.00025922,4]
[366657038,1750384238384,-150.0,0.00025953,4]
[366657039,1750384238395,-150.0,0.00025953,4]
[366657040,1750384238405,-150.0,0.00025972,4]
[366657041,1750384238415,-150.0,0.00025979,4]
[366657042,1750384238425,-150.0,0.00025979,4]
[366657043,1750384238437,-250.71174688,0.00025989,2]
[366657044,1750384238448,-150.0,0.00026036,4]
[366657045,1750384238458,-150.0,0.00026041,4]
[366657046,1750384238468,-267.0,0.00026065,2]
[366657047,1750384238479,-315.63132535,0.00026065,2]
[366657048,1750384238489,-150.0,0.00026082,4]
[366657049,1750384238500,-150.0,0.00026093,4]
[366657050,1750384238511,-150.0,0.00026101,4]
[366657051,1750384238522,-150.0,0.00026111,4]
[366657052,1750384238537,-150.0,0.00026121,4]
[366657053,1750384238548,-150.0,0.0002615,4]
[366657054,1750384238558,-150.0,0.00026181,4]
[366657055,1750384238570,-150.0,0.00026207,4]
[366657056,1750384238581,-250.53384241,0.00026211,2]
[366657057,1750384238592,-150.0,0.00026212,4]
[366657058,1750384238604,-150.0,0.00026212,4]
[366657059,1750384238615,-150.0,0.0002625,4]
[366657060,1750384238626,-150.0,0.00026264,4]
[366657061,1750384238637,-150.0,0.00026264,4]
[366657062,1750384238648,-150.0,0.0002632,4]
[366657063,1750384238658,-150.0,0.00026321,4]
[366657064,1750384238668,-150.0,0.00026342,4]
[366657065,1750384238679,-150.0,0.00026378,4]
[366657066,1750384238689,-150.0,0.00026389,4]
[366657067,1750384238699,-150.0,0.00026407,4]
[366657068,1750384238709,-150.0,0.00026435,4]
[366657069,1750384238719,-138.42668248,0.00026448,2]
[366657070,1750384239876,-361.57331752,0.00026448,2]
[366657071,1750384239887,-292.6392671,0.0002645,2]
[366657072,1750384239897,-150.0,0.00026459,4]
[366657073,1750384239908,-150.0,0.00026472,4]
[366657074,1750384239919,-150.0,0.00026472,4]
[366657075,1750384239929,-150.0,0.00026492,4]
[366657076,1750384239940,-150.0,0.00026509,4]
[366657077,1750384239950,-2831.06133239,0.00026521,15]
[366657078,1750384239961,-150.0,0.00026529,4]
[366657079,1750384239971,-150.0,0.0002655,4]
[366657080,1750384239982,-150.0,0.0002655,4]
[366657081,1750384239993,-331.88770292,0.00026571,7]
[366657082,1750384240003,-150.0,0.00026598,4]
[366657083,1750384240013,-150.0,0.00026601,4]
[366657084,1750384240023,-150.0,0.00026607,4]
[366657085,1750384240034,-14169.68,0.00026607,2]
[366657086,1750384240045,-150.0,0.00026645,4]
[366657087,1750384240055,-150.0,0.00026664,4]
[366657088,1750384240066,-150.0,0.00026668,4]
[366657089,1750384240076,-150.0,0.00026692,4]
[366657090,1750384240087,-150.0,0.00026721,4]
[366657091,1750384240097,-150.0,0.00026731,4]
[366657092,1750384240108,-150.0,0.00026731,4]
[366657093,1750384240118,-150.0,0.00026738,4]
[366657094,1750384240130,-150.0,0.00026778,4]
[366657095,1750384240140,-150.0,0.00026807,4]
[366657096,1750384240151,-2831.06133239,0.00026831,15]
[366657097,1750384240162,-150.0,0.00026835,4]
[366657098,1750384240173,-150.0,0.00026835,4]
[366657099,1750384240183,-150.0,0.00026861,4]
[366657100,1750384240194,-150.0,0.00026877,4]
[366657101,1750384240204,-150.0,0.00026892,4]
[366657102,1750384240215,-221.01462736,0.00026898,2]
[366657103,1750384240225,-150.0,0.00026917,4]
[366657104,1750384240235,-150.0,0.00026946,4]
[366657124,1750384240578,-150.0,0.00026949,4]
[366657126,1750384240588,-150.0,0.00026978,4]
[366657127,1750384240597,-436.45,0.00026989,2]
[366657129,1750384240609,-150.0,0.00026991,4]
[366657130,1750384240619,-150.0,0.00026991,4]
[366657131,1750384240629,-150.0,0.00027006,4]
[366657132,1750384240638,-150.0,0.00027016,4]
[366657133,1750384240648,-206.0,0.00027044,4]
[366657134,1750384240657,-666.0,0.00027047,2]
[366657135,1750384240668,-150.0,0.00027063,4]
[366657136,1750384240679,-150.0,0.00027086,4]
[366657137,1750384240691,-207.4,0.00027104,2]
[366657138,1750384240701,-1957.856,0.00027104,2]
[366657139,1750384240711,-150.0,0.00027121,4]
[366657140,1750384240721,-150.0,0.00027121,4]
[366657141,1750384240732,-150.0,0.00027121,4]
[366657142,1750384240742,-2831.06133239,0.00027141,16]
[366657143,1750384240753,-167.37,0.00027145,2]
[366657144,1750384240763,-150.0,0.00027155,4]
[366657145,1750384240773,-2159.83361093,0.00027159,2]
[366657146,1750384240785,-150.0,0.00027178,4]
[366657147,1750384240796,-150.0,0.00027225,4]
[366657148,1750384240806,-789.94664,0.0002723,2]
[366657149,1750384240817,-150.0,0.00027235,4]
[366657150,1750384240828,-2061.33,0.0002725,4]
[366657151,1750384240838,-150.0,0.0002725,4]
[366657152,1750384240848,-150.0,0.0002725,4]
[366657153,1750384240857,-150.0,0.00027263,4]
[366657154,1750384240867,-422.25,0.00027281,120]
[366657155,1750384240877,-200.0,0.00027281,7]
[366657156,1750384240888,-150.0,0.00027292,4]
[366657157,1750384240897,-150.0,0.00027295,4]
[366657158,1750384240907,-292.6392671,0.00027306,2]
[366657159,1750384240917,-150.0,0.00027314,2]
[366657160,1750384240926,-150.0,0.00027324,4]
[366657161,1750384240936,-150.0,0.00027343,2]
[366657162,1750384240947,-150.0,0.00027349,4]
[366657163,1750384240958,-150.0,0.00027364,4]
[366657164,1750384240970,-150.0,0.00027365,2]
[366657165,1750384240982,-150.0,0.00027368,2]
[366657166,1750384240994,-160.92,0.00027377,120]
[366657167,1750384241004,-353.81,0.00027378,2]
[366657168,1750384241014,-150.0,0.0002738,4]
[366657169,1750384241024,-112283.01747092,0.00027386,5]
[366657170,1750384241034,-175.5681281,0.00027386,2]
[366657171,1750384241044,-566.83307017,0.00027386,13]
[366657172,1750384241057,-1408.57207992,0.00027394,2]
[366657173,1750384241068,-274.58199239,0.00027395,2]
[366657174,1750384241078,-496.74873707,0.00027395,2]
[366657175,1750384241089,-277.71743426,0.00027395,2]
[366657176,1750384241101,-299.93836655,0.00027397,2]
[366657177,1750384241112,-1000.0,0.000274,2]
[366657178,1750384241122,-6116.53806795,0.000274,3]
[366657179,1750384241134,-150.0,0.00027406,7]
[366657180,1750384241144,-150.0,0.00027406,7]
[366657181,1750384241155,-150.0,0.00027434,7]
[366657182,1750384241166,-4745.50855364,0.00027448,20]
[366657183,1750384241176,-2831.06133239,0.00027452,17]
[366657184,1750384241188,-150.0,0.00027463,7]
[366657185,1750384241198,-350.0,0.00027473,2]
[366657186,1750384241208,-501.15678859,0.00027473,3]
[366657187,1750384241219,-803.94,0.00027475,2]
[366657188,1750384241228,-151.0,0.0002748,2]
[366657189,1750384241238,-803.94,0.00027481,2]
[366657190,1750384241249,-196.77299688,0.00027485,2]
[366657191,1750384241259,-490.0,0.00027485,4]
[366657192,1750384241270,-490.0,0.00027485,4]
[366657193,1750384241279,-490.0,0.00027485,4]
[366657194,1750384241289,-490.0,0.00027485,4]
[366657195,1750384241299,-490.0,0.00027485,4]
[366657196,1750384241308,-490.0,0.00027485,4]
[366657197,1750384241319,-490.0,0.00027485,4]
[366657198,1750384241328,-490.0,0.00027485,4]
[366657199,1750384241337,-490.0,0.00027485,4]
[366657200,1750384241347,-490.0,0.00027485,4]
[366657201,1750384241356,-490.0,0.00027485,4]
[366657202,1750384241366,-490.0,0.00027485,4]
[366657203,1750384241378,-490.0,0.00027485,2]
[366657204,1750384241387,-490.0,0.00027485,4]
[366657205,1750384241398,-490.0,0.00027485,2]
[366657206,1750384241408,-743.03,0.00027485,4]
[366657207,1750384241418,-743.03,0.00027485,4]
[366657208,1750384241428,-743.03,0.00027485,4]
[366657209,1750384241437,-776.67,0.00027485,4]
[366657210,1750384241447,-500.0,0.00027485,2]
[366657211,1750384241456,-490.0,0.00027485,4]
[366657212,1750384241466,-1111.43,0.00027485,4]
[366657213,1750384241476,-490.0,0.00027485,4]
[366657214,1750384241485,-10364.134244,0.00027485,2]
[366657215,1750384241495,-186859.64295986,0.00027486,2]
[366657216,1750384241517,-1014.82187784,0.00027486,2]
[366657217,1750384241534,-1046.6,0.00027486,2]
[366657218,1750384241549,-971.97016504,0.00027486,2]
[366657219,1750384241577,-490.0,0.00027485,4]
[366657220,1750384241587,-457.72946,0.00027486,2]
[366657228,1750384243021,-1450.0,0.00027486,2]
[366657230,1750384246076,-3033.71101605,0.00027486,2]
[366657256,1750384647858,9555.1,0.0002313,2]
[366657258,1750384893831,500.0,0.00025,120]
[366657260,1750385157875,154.23,0.00013699,2]
[366657263,1750385176467,203.0,0.00022545,2]
[366657266,1750385330404,220.08356941,0.00025,120]
[366657267,1750385362393,533.0,0.00025,120]
[366657278,1750385431897,-1000.0,0.00023597,2]
[366657279,1750385431908,-2649.63213969,0.00023783,2]
[366657280,1750385431919,-203.0,0.00023883,4]
[366657281,1750385431929,-292.6392671,0.00024852,2]
[366657282,1750385431940,-2615.00766491,0.000249,12]
[366657283,1750385431951,-300.0,0.00024952,2]
[366657284,1750385431962,-300.0,0.00024952,2]
[366657285,1750385431973,-1200.0,0.00024952,2]
[366657286,1750385431983,-150.0,0.00024953,4]
[366657287,1750385431994,-150.0,0.00024953,4]
[366657288,1750385432005,-150.0,0.00024953,4]
[366657289,1750385432016,-150.26849384,0.00024953,4]
[366657290,1750385432026,-150.0,0.00024953,4]
[366657291,1750385432036,-150.0,0.00024953,4]
[366657292,1750385432047,-150.0,0.00024953,4]
[366657293,1750385432061,-150.0,0.00024953,4]
[366657294,1750385432071,-150.0,0.00024953,4]
[366657295,1750385432082,-150.0,0.00024953,4]
[366657296,1750385432093,-150.0,0.00024953,4]
[366657297,1750385432103,-150.0,0.00024953,4]
[366657298,1750385432113,-5000.005,0.00025,5]
[366657299,1750385432124,-151.0,0.00025,7]
[366657300,1750385432134,-150.0,0.0002504,4]
[366657301,1750385432144,-150.0,0.0002506,4]
[366657302,1750385432154,-150.0,0.00025127,4]
[366657303,1750385432165,-150.0,0.00025151,4]
[366657304,1750385432176,-150.0,0.00025167,4]
[366657305,1750385432186,-150.0,0.00025167,4]
[366657306,1750385432196,-250.0,0.00025208,2]
[366657307,1750385432206,-150.0,0.00025213,4]
[366657308,1750385432216,-203.0,0.00025221,6]
[366657309,1750385432227,-2615.00766484,0.00025245,12]
[366657310,1750385432237,-1000.0,0.00025252,2]
[366657311,1750385432247,-150.0,0.00025273,4]
[366657312,1750385432258,-150.0,0.000253,4]
[366657313,1750385432268,-150.0,0.0002535,4]
[366657314,1750385432280,-150.0,0.0002535,4]
[366657315,1750385432291,-150.0,0.0002538,4]
[366657316,1750385432302,-150.0,0.0002538,4]
[366657317,1750385432312,-150.0,0.00025387,4]
[366657318,1750385432324,-447.0,0.00025387,2]
[366657319,1750385432335,-150.0,0.00025473,4]
[366657320,1750385432345,-150.0,0.00025487,4]
[366657321,1750385432359,-150.0,0.00025548,4]
[366657322,1750385432370,-150.0,0.0002556,4]
[366657323,1750385432382,-2615.00766484,0.0002559,13]
[366657324,1750385432394,-150.0,0.00025593,4]